Cogmind - Beta 16.1 @@@ ROGUE MODE // 2026.03.04 @ 13:51:07 Player: Endlessblaze Result: Destroyed by G-47 Trooper with Particle Gun Performance ------------- Evolutions (3) 1500 Regions Visited (6) 1200 Robots Destroyed (69) 345 Value Destroyed (1880) 1880 Prototype IDs (23) 460 Alien Tech Used (0) 0 Bonus (418) 418 TOTAL SCORE: 5803 Bonus ------- High Alert Combat Kills 33 Follower Combat Kills 85 Aligned with FarCom 300 Cogmind --------- Core Integrity 0/700 Matter 189/300 Energy 100/100 System Corruption 8% Temperature Cool (27) Movement Core (300) Ox5 Location -7/Factory Parts ------- > --- POWER (1) -------- (None) > --- PROPULSION (4) --- (None) > --- UTILITY (5) ------ Medium Storage Unit Improved Signal Interpreter Advanced Targeting Computer Core Analyzer > --- WEAPON (3) ------- Power Maul Chainsword > --- INVENTORY (10) --- Disposable Heat Sink Cargo Storage Unit Armor Integrity Analyzer Recalibrator Peak State ------------ > --- POWER ------------ Reinforced Ion Engine > --- PROPULSION ------- Carbon-fiber Leg Carbon-fiber Leg Carbon-fiber Leg Carbon-fiber Leg > --- UTILITY ---------- Improved Heat Sink Medium Storage Unit Improved Signal Interpreter Terrain Scan Processor Improved Salvage Targeting Computer > --- WEAPON ----------- YOLO Cannon Great Axe > --- INVENTORY -------- Light Ion Engine Carbon-fiber Leg Titanium Leg Advanced Targeting Computer Recoil Stabilizer Improved Light Armor Plating EMP Blaster Rocket Launcher [Rating: 53] Favorites ----------- Power Ion Engine Engine Ion Engine Power Core Nuclear Core Propulsion Aluminum Leg Leg Aluminum Leg Utility Small Storage Unit Device Improved Heat Sink Storage Small Storage Unit Processor Terrain Scan Processor Protection Weapon Shielding Weapon Light Assault Rifle Energy Gun EM Pulse Gun Energy Cannon YOLO Cannon Ballistic Gun Light Assault Rifle Launcher Heavy Rocket Launcher Impact Weapon Power Maul Slashing Weapon Great Axe Build | -11 -10 -10 -10 -9 -8 -7 ------- Run | Yrd Mat Min Exi Min Mat Fac Slots Evolved 6 | . . . . . 4 2 Power . | . . . . . . . Propulsion 2 | . . . . . . 2 Utility 3 | . . . . . 3 . Weapon 1 | . . . . . 1 . Parts Attached 47 | 7 2 . . 3 23 12 Power 5 | 1 . . . . 4 . Engine 4 | 1 . . . . 3 . Core 1 | . . . . . 1 . Reactor . | . . . . . . . Propulsion 13 | 2 2 . . 1 5 3 Treads . | . . . . . . . Leg 13 | 2 2 . . 1 5 3 Wheel . | . . . . . . . Hover . | . . . . . . . Flight . | . . . . . . . Utility 16 | 2 . . . . 9 5 Device 6 | 1 . . . . 4 1 Storage 2 | 1 . . . . 1 . Processor 5 | . . . . . 3 2 Hackware . | . . . . . . . Protection 3 | . . . . . 1 2 Artifact . | . . . . . . . Weapon 13 | 2 . . . 2 5 4 Energy Gun 2 | . . . . . 2 . Energy Cannon 2 | . . . . . 1 1 Ballistic Gun 4 | 2 . . . 2 . . Ballistic Cannon . | . . . . . . . Launcher 1 | . . . . . . 1 Special Weapon . | . . . . . . . Impact Weapon 1 | . . . . . . 1 Slashing Weapon 3 | . . . . . 2 1 Piercing Weapon . | . . . . . . . Special Melee Weapon . | . . . . . . . Unidentified Prototypes . | . . . . . . . Parts Lost 21 | . . . . . 10 11 Power 2 | . . . . . 1 1 Propulsion 5 | . . . . . 1 4 Utility 7 | . . . . . 4 3 Weapon 7 | . . . . . 4 3 Highest Loss Streak 10 | . . . . . 5 10 To Critical Strikes . | . . . . . . . Average Backups 6 | 1 4 6 6 7 6 8 Power . | . . . . . . . Propulsion . | . . . . . . . Utility 2 | . 1 3 3 3 2 4 Weapon 3 | 1 2 3 3 4 3 2 Tool/Special . | . . . . . . . Unused Backups 10 | . . . . 2 2 6 Power . | . . . . . . . Propulsion . | . . . . . . . Utility 6 | . . . . 1 1 4 Weapon 4 | . . . . 1 1 2 Tool/Special . | . . . . . . . Average Slot Usage (%) 95 | . 100 100 100 100 95 88 Engine 8 | . 14 14 14 14 5 6 Core 1 | . . . . . 2 . Leg 22 | . 28 28 28 28 17 27 Device 14 | . 14 14 14 14 18 6 Storage 9 | . 14 14 14 14 7 7 Processor 10 | . . . . . 16 15 Protection 2 | . . . . . 2 6 Energy Gun 2 | . . . . . 4 . Energy Cannon 2 | . . . . . 2 6 Ballistic Gun 13 | . 28 28 28 28 8 . Slashing Weapon 5 | . . . . . 7 7 Peak Build Rating 53 | 9 9 9 11 12 47 53 Average Rating 26 | 7 8 9 10 11 30 49 On Entrance 13 | . 9 9 9 11 12 47 Avg Prop Armor Cover (%) 7 | 30 . . . . 7 6 Naked Turns . | . . . . . . . Heaviest Build 46 | 13 13 13 13 13 43 46 Greatest Support 60 | 20 20 20 20 20 32 60 Greatest Overweight (x) 5 | . 1 . . . 2 5 Average Overweight (x) . | . . . . . . . Largest Inventory Capacity 10 | 8 8 8 8 8 10 10 Average Capacity 8 | 7 8 8 8 8 7 10 Most Carried 10 | 3 7 6 8 8 10 10 Average Carried 7 | 1 5 6 7 7 6 9 Final Capacity 10 | 8 8 8 8 8 10 10 Final Carried 10 | 3 6 6 8 8 10 5 Class Distribution -------------------- 46% | Mutant 26% | Scavenger-Mutant 24% | Scavenger-Skirmisher 3% | Scavenger-Assassin Dominant Class ---------------- Mutant | -10/Materials Mutant | -10/Mines Mutant | -10/Exiles Scavenger-Skirmisher | -9/Mines Scavenger-Mutant | -8/Materials Mutant | -7/Factory Resources | -11 -10 -10 -10 -9 -8 -7 ----------- Run | Yrd Mat Min Exi Min Mat Fac Matter Collected 841 | 300 42 . . 62 342 95 Remotely . | . . . . . . . Salvage Created 2022 | 174 126 . . 128 1128 466 Parts 112 | 8 8 . . 13 60 23 Haulers Intercepted 1 | . . . . . 1 . Recyclers Shooed . | . . . . . . . Parts Field Recycled . | . . . . . . . Retrieved Matter . | . . . . . . . Parts Self-Destructed . | . . . . . . . Prevented . | . . . . . . . Parts Restored . | . . . . . . . Kills | -11 -10 -10 -10 -9 -8 -7 ------- Run | Yrd Mat Min Exi Min Mat Fac Combat Hostiles Destroyed 43 | . 3 . . 3 22 15 Melee 6 | . . . . . 4 2 Guns 13 | . 3 . . 3 7 . Cannons 7 | . . . . . 3 4 AOE 14 | . . . . . 5 9 Classes Destroyed 13 | 2 1 . . 4 5 1 Worker 6 | . . . . 1 4 1 Builder 6 | . . . . 1 2 3 Tunneler 4 | 4 . . . . . . Hauler 1 | . . . . . 1 . Recycler 5 | 1 . . . . 3 1 Watcher 4 | . . . . . 2 2 Swarmer 15 | . . . . 2 6 7 Grunt 14 | . 3 . . . 7 4 Brawler 1 | . . . . . 1 . Duelist 2 | . . . . 1 . 1 Sentry 7 | . . . . . 7 . Hunter 1 | . . . . . 1 . Programmer 3 | . . . . . . 3 Best Kill Streak 9 | 2 2 . . 2 7 9 Combat Bots Only 5 | . 2 . . 2 4 5 Max Kills in Single Turn 4 | 1 1 . . 1 4 4 Gunslinging . | . . . . . . . Exploded 3 | . . . . . 1 3 Melee 1 | . . . . . 1 1 Uniques/NPCs Destroyed . | . . . . . . . Combat | -11 -10 -10 -10 -9 -8 -7 -------- Run | Yrd Mat Min Exi Min Mat Fac Hostile Shots Fired 260 | . 18 . . 12 131 99 Missed 71 | . 6 . . 3 36 26 Hits 189 | . 12 . . 9 95 73 Melee 5 | . . . . . 5 . Projectile 184 | . 12 . . 9 90 73 Critical Strikes 12 | . 1 . . . 5 6 Actively Blocked 2 | . . . . . . 2 Damage Taken 3020 | . 154 . . 73 1573 1220 Core 816 | . 36 . . 33 383 364 Absorbed by Shields . | . . . . . . . Redirected to Shielding 100 | . . . . . 50 50 Regen/Repaired (Parts) 15 | . . . . . 15 . Core Remaining (%) 67 | 100 . . . 72 30 . Volleys Fired 126 | 15 13 . . 14 64 20 Largest 2 | 2 2 . . 2 2 2 Hottest 108 | 40 40 . . 40 100 108 Shots Fired 214 | 30 26 . . 28 107 23 Gun 170 | 30 26 . . 28 86 . Cannon 38 | . . . . . 21 17 Launcher 6 | . . . . . . 6 Special . | . . . . . . . Kinetic 147 | 30 26 . . 28 63 . Thermal 34 | . . . . . 21 13 Explosive 6 | . . . . . . 6 Electromagnetic 27 | . . . . . 23 4 Robot Hit Streak 11 | 4 11 . . 4 11 2 Robot Miss Streak 4 | 3 2 . . 4 3 2 Penetration Max . | . . . . . . . Secondary Targets . | . . . . . . . Shots Hit Robots 150 | 16 19 . . 12 84 19 Core Hits 96 | 10 9 . . 10 42 25 Critical Kills 3 | . . . . . 3 . Critical Parts Destroyed . | . . . . . . . Critical Strikes 6 | . . . . . 6 . Meltdown 2 | . . . . . 2 . Destroy 1 | . . . . . 1 . Sever 3 | . . . . . 3 . Melee Attacks 33 | . . . . . 17 16 Impact 4 | . . . . . . 4 Slashing 29 | . . . . . 17 12 Piercing . | . . . . . . . Sneak Attacks 2 | . . . . . 2 . Combat Hostiles . | . . . . . . . Follow-up Attacks . | . . . . . . . Damage Inflicted 6519 | 145 152 . . 126 3082 3014 Guns 984 | 145 152 . . 126 561 . Cannons 1947 | . . . . . 996 951 Explosions 2677 | . . . . . 1053 1624 Melee 911 | . . . . . 472 439 Ramming . | . . . . . . . Kinetic 766 | 145 152 . . 126 343 . Thermal 3896 | . . . . . 2049 1847 Explosive 680 | . . . . . . 680 Electromagnetic 266 | . . . . . 218 48 Impact 148 | . . . . . . 148 Slashing 763 | . . . . . 472 291 Piercing . | . . . . . . . Highest Corruption 8 | . . . . . 5 8 Average Corruption 3 | . . . . . 5 1 Corruption Purged . | . . . . . . . Corruption Blocked . | . . . . . . . Effects 28 | . . . . . 21 7 Message Errors 8 | . . . . . 7 1 Matter Fused 6 | . . . . . 4 2 Heat Flow Errors 5 | . . . . . 3 2 Energy Discharges 3 | . . . . . 2 1 Parts Rejected 1 | . . . . . 1 . Data Loss (minor) 1 | . . . . . 1 . Data Loss (major) 1 | . . . . . . 1 Misfires 1 | . . . . . 1 . Alerts 1 | . . . . . 1 . Weapon Failures 1 | . . . . . 1 . Overload Shots . | . . . . . . . Overflow Damage 765 | . . . . . 315 450 Projectiles 494 | . . . . . 171 323 Explosions 136 | . . . . . 91 45 Melee 135 | . . . . . 53 82 Knockbacks 2 | . . . . . . 2 Impact 2 | . . . . . . 2 Kinetic . | . . . . . . . Secondary . | . . . . . . . Self-Inflicted Damage 252 | . . . . . 172 80 Shots 4 | . . . . . 3 1 Rammed . | . . . . . . . Targets Rammed . | . . . . . . . Kicked . | . . . . . . . Crushed . | . . . . . . . Highest Temperature 254 | . 16 . . . 185 254 Average Temperature 55 | . 8 . . . 60 79 Received Heat Transfer 1077 | . 105 . . . 531 441 Siege Activations . | . . . . . . . Martial Activations . | . . . . . . . Shielding Activations . | . . . . . . . Robots Disrupted . | . . . . . . . Combat Hostiles . | . . . . . . . Robots Corrupted 1 | . . . . . 1 . Combat Hostiles 1 | . . . . . 1 . Parts Fried 2 | . . . . . 2 . Impact Corruptions 2 | . . . . . . 2 Robots Melted 2 | . . . . . 2 . Combat Hostiles 2 | . . . . . 2 . Parts Melted 6 | . . . . . 3 3 Heat Transferred 3460 | . . . . . 1840 1620 Parts Sabotaged . | . . . . . . . Parts Stolen . | . . . . . . . Parts Stripped . | . . . . . . . Power Chain Reactions . | . . . . . . . Alert | -11 -10 -10 -10 -9 -8 -7 ------- Run | Yrd Mat Min Exi Min Mat Fac Maximum Alert Level 2 | . . . . . 2 1 Low Security (%) 64 | 100 100 100 . 100 61 14 Level 1 31 | . . . . . 29 85 Level 2 4 | . . . . . 8 . Level 3 . | . . . . . . . Level 4 . | . . . . . . . Level 5 . | . . . . . . . High Security . | . . . . . . . Max Security . | . . . . . . . Peak Influence 611 | 5 50 7 . 81 611 361 Initial 277 | . . 7 . . 25 277 Average 134 | 1 19 1 . 6 159 259 Influence Increases 1912 | 25 80 . . 141 1088 578 Destroy 0b10 Robot/C 920 | . 60 . . 100 460 300 Destroy 0b10 Robot/NC 130 | 25 . . . 10 60 35 Destroy Leader 250 | . 20 . . 20 136 74 Allied During Kill 20 | . . . . 11 9 . Successful Hack 49 | . . . . . 40 9 Disable Machine 150 | . . . . . 90 60 Destroy Structure 303 | . . . . . 203 100 Lose Combat Pursuer 90 | . . . . . 90 . Influence Decreases 1641 | 25 60 20 . 76 543 917 Entered New Map 386 | . . 13 . . 40 333 Time Decay 1011 | 25 60 7 . 76 369 474 Lost Part 204 | . . . . . 94 110 Lost Ally 40 | . . . . . 40 . Squads Dispatched 8 | . 2 . . . 2 4 Investigation 3 | . 1 . . . 2 . Extermination 3 | . . . . . . 3 Reinforcement 2 | . 1 . . . . 1 Assault . | . . . . . . . Garrison . | . . . . . . . Intercept . | . . . . . . . Searches Triggered . | . . . . . . . Construction Impeded . | . . . . . . . Haulers Reinforced . | . . . . . . . Active Scanning Responses . | . . . . . . . Cargo Convoy Interrupts . | . . . . . . . Stealth | -11 -10 -10 -10 -9 -8 -7 --------- Run | Yrd Mat Min Exi Min Mat Fac Distress Signals 4 | . . . . . 3 1 Communications Jammed . | . . . . . . . Distress Signals . | . . . . . . . Times Spotted 62 | . 5 . . 5 36 16 Peak Tracking Total 6 | . 4 . . 3 6 6 Tactical Retreats 6 | . . . . . 6 . Traps | -11 -10 -10 -10 -9 -8 -7 ------- Run | Yrd Mat Min Exi Min Mat Fac Traps Triggered 2 | . 1 . . . . 1 Indirectly . | . . . . . . . Trap Hack Attempts . | . . . . . . . Triggered . | . . . . . . . Disarmed . | . . . . . . . Reprogrammed . | . . . . . . . Reused . | . . . . . . . Traps Extracted . | . . . . . . . Installed . | . . . . . . . Triggered . | . . . . . . . Machines | -11 -10 -10 -10 -9 -8 -7 ---------- Run | Yrd Mat Min Exi Min Mat Fac Machines Disabled 10 | . . . . . 6 4 Max in Single Turn 2 | . . . . . 2 2 Garrison Access 1 | . . . . . 1 . Machines Repaired . | . . . . . . . Machines Dismantled . | . . . . . . . Machines Sabotaged . | . . . . . . . Overloaded Fab Kills . | . . . . . . . Hacking | -11 -10 -10 -10 -9 -8 -7 --------- Run | Yrd Mat Min Exi Min Mat Fac Machines Accessed 23 | . 1 . 4 . 13 5 Terminals 11 | . . . . . 9 2 Fabricators 1 | . . . . . . 1 Repair Stations 3 | . . . . . 2 1 Recycling Units 2 | . 1 . . . . 1 Scanalyzers 1 | . . . . . 1 . Garrison Access 1 | . . . . . 1 . Total Hacks 95 | . 2 . 41 . 43 9 Successful 74 | . 1 . 41 . 27 5 Failed 21 | . 1 . . . 16 4 Catastrophic 4 | . 1 . . . 2 1 Database Lockouts . | . . . . . . . Manual 24 | . 1 . 1 . 18 4 Terminals 34 | . . . . . 28 6 Fabricators 1 | . . . . . . 1 Repair Stations 9 | . . . . . 8 1 Recycling Units 3 | . 2 . . . . 1 Scanalyzers 6 | . . . . . 6 . Garrison Access 1 | . . . . . 1 . Terminal Hacks 50 | . . . 41 . 7 2 Record 41 | . . . 40 . . 1 Robot Analysis 2 | . . . . . 2 . Emergency Access Points 1 | . . . . . . 1 Terminal Index 1 | . . . . . 1 . Alert Level 1 | . . . . . 1 . Locate Traps 1 | . . . . . 1 . Zone Layout 2 | . . . . . 2 . Proto ID Catalog 1 | . . . 1 . . . Fabricator Hacks . | . . . . . . . Repair Station Hacks 5 | . . . . . 5 . Scan Component 4 | . . . . . 4 . Repair 1 | . . . . . 1 . Recycling Unit Hacks 1 | . 1 . . . . . Report Inventory 1 | . 1 . . . . . Scanalyzer 5 | . . . . . 5 . Insert Component 2 | . . . . . 2 . Analyze 2 | . . . . . 2 . Retrieve Study 1 | . . . . . 1 . Garrison Access Hacks 1 | . . . . . 1 . Seal Access 1 | . . . . . 1 . Unauthorized Hacks 12 | . . . . . 9 3 Terminals 12 | . . . . . 9 3 Track 5 | . . . . . 4 1 Assimilate 1 | . . . . . . 1 Botnet 6 | . . . . . 5 1 Fabricators . | . . . . . . . Repair Stations . | . . . . . . . Recycling Units . | . . . . . . . Scanalyzers . | . . . . . . . Garrison Access . | . . . . . . . Data Cores Recovered . | . . . . . . . Used . | . . . . . . . Hacking Detections 18 | . 1 . . . 12 5 Full Trace Events 2 | . . . . . 2 . Feedback Events . | . . . . . . . Feedback Blocked . | . . . . . . . Robot Schematics Acquired . | . . . . . . . Robots Built . | . . . . . . . Authchips . | . . . . . . . Time . | . . . . . . . Total Robot Build Rating . | . . . . . . . Part Schematics Acquired 2 | . . . . . 2 . Parts Built . | . . . . . . . Authchips . | . . . . . . . Time . | . . . . . . . Total Part Build Rating . | . . . . . . . Part Studies Acquired 1 | . . . . . 1 . Parts Repaired 1 | . . . . . 1 . Time 26 | . . . . . 26 . Parts Recycled . | . . . . . . . Recycled Matter . | . . . . . . . Retrieved Matter . | . . . . . . . Retrieved Components . | . . . . . . . Parts Scanalyzed 2 | . . . . . 2 . Part Schematics Acquired 2 | . . . . . 2 . Parts Damaged . | . . . . . . . Bothacking | -11 -10 -10 -10 -9 -8 -7 ------------ Run | Yrd Mat Min Exi Min Mat Fac Used RIF Installer . | . . . . . . . Robots Hacked . | . . . . . . . Non-combat . | . . . . . . . Combat . | . . . . . . . Robot Hacks Applied . | . . . . . . . Relay Couplers Released . | . . . . . . . Fabnet Peak Effective % . | . . . . . . . Robots Rewired . | . . . . . . . Allies Hacked . | . . . . . . . Hacks Repelled . | . . . . . . . Allies | -11 -10 -10 -10 -9 -8 -7 -------- Run | Yrd Mat Min Exi Min Mat Fac Total Allies 3 | . . . . 3 . . Largest Group 3 | . . . . 3 3 . Highest-Rated Group 40 | . . . . 40 40 . Highest-Rated Ally 16 | . . . . 16 16 . Total Orders 6 | . . . . . 6 . STAY 3 | . . . . . 3 . FOLLOW 3 | . . . . . 3 . Ally Attacks 31 | . . . . 14 17 . Total Damage 283 | . . . . 124 159 . Kills 3 | . . . . 2 1 . Allies Corrupted . | . . . . . . . Allies Melted . | . . . . . . . Intel | -11 -10 -10 -10 -9 -8 -7 ------- Run | Yrd Mat Min Exi Min Mat Fac Active Infowar (turns) 5088 | 106 181 77 783 1429 2497 15 Terrain 3167 | 106 181 77 783 1429 591 . Seismic 2495 | . . . . . 2495 . Jamming 15 | . . . . . . 15 Robot Analysis Total 2 | . . . . . 2 . Derelict Logs Recovered 1 | . . . . 1 . . Drone Launches . | . . . . . . . Drone Recoveries . | . . . . . . . Exploration | -11 -10 -10 -10 -9 -8 -7 ------------- Run | Yrd Mat Min Exi Min Mat Fac Turns Passed 7331 | 179 181 77 783 1429 3480 1202 Spaces Moved 3200 | 115 116 64 652 590 1027 636 Core 22 | 16 . . . . . 6 Treads . | . . . . . . . Legs 3178 | 99 116 64 652 590 1027 630 Wheels . | . . . . . . . Hover . | . . . . . . . Flight . | . . . . . . . Fastest Speed 50 | 50 120 120 120 120 120 120 Average Speed 133 | 110 121 120 120 120 159 125 Slowest Speed 300 | 120 190 120 120 120 260 300 Overloaded Moves . | . . . . . . . Propulsion Burnouts . | . . . . . . . Robots Hopped . | . . . . . . . Potential Cave-ins . | . . . . . . . Cave-ins Triggered . | . . . . . . . Exploration Rate (%) 41 | 4 27 20 92 69 61 14 Regions Visited 6 Branch Regions 3 Pre-discovered Areas 2 | . . . 1 1 . . Known Exits Taken 1 | . . . . . 1 . Unknown Exits Taken 5 | 1 1 1 1 1 . . Scrap Searched . | . . . . . . . Spaces Dug 59 | . . . . . 59 . Terrain Destroyed 353 | . . . . . 237 116 Melee . | . . . . . . . Projectile 12 | . . . . . 10 2 AOE 341 | . . . . . 227 114 Terrain Rammed . | . . . . . . . Walls Destroyed . | . . . . . . . Machines Disabled . | . . . . . . . Actions | -11 -10 -10 -10 -9 -8 -7 --------- Run | Yrd Mat Min Exi Min Mat Fac Total 5956 | 140 135 64 652 1291 2706 968 Wait 2481 | . . 1 . 678 1539 263 Move 3194 | 114 115 63 651 589 1026 636 Hop . | . . . . . . . Pick Up 37 | 4 3 . 1 2 18 9 Fast Attach 23 | 6 1 . . . 13 3 Attach 20 | 1 . . . . 10 9 Detach 2 | . . . . . 2 . Swap 10 | . 1 . . 3 4 2 Drop 30 | . 2 . . 5 13 10 Fire 126 | 15 13 . . 14 64 20 Melee 33 | . . . . . 17 16 Ram . | . . . . . . . Kick . | . . . . . . . Crush . | . . . . . . . Escape Stasis . | . . . . . . . Rewire . | . . . . . . . Trap . | . . . . . . . Miscellaneous . | . . . . . . . Route ------- -11/Scrapyard -10/Materials -10/Mines -10/Exiles -9/Mines (discovered 2 exits: *Mat x2) -8/Materials -7/Factory (discovered 1 exit: *Fac) History --------- Turn | Location | Event 18 | -11/Scrapyard | Discovered new exit (range 16) 180 | -11/Scrapyard | Entered Materials 308 | -10/Materials | Build established: Mutant 329 | -10/Materials | Met 8R-AWN 342 | -10/Materials | Discovered new exit (range 16) 361 | -10/Materials | Entered Mines 362 | -10/Mines | Followed 8R-AWN into the Mines 432 | -10/Mines | Discovered new exit (range 5) 438 | -10/Mines | Entered Exiles 480 | -10/Exiles | Welcomed by 8R-AWN 515 | -10/Exiles | Met EX-HEX 567 | -10/Exiles | Met EX-BIN 587 | -10/Exiles | Aligned with FarCom system 588 | -10/Exiles | Given EX-Vault access code 718 | -10/Exiles | Opened EX-Vault 728 | -10/Exiles | Found YOLO Cannon 754 | -10/Exiles | Warned to stay clear of 0b10 Research branches 808 | -10/Exiles | Met EX-DEC 876 | -10/Exiles | Visited The Gauntlet 1084 | -10/Exiles | Learned location of Zion (-7) 1189 | -10/Exiles | Discovered new exit (range 15) 1221 | -10/Exiles | Left Exiles lab with YOLO Cannon 1221 | -10/Exiles | Entered Mines 1438 | -9/Mines | Received a Rocket Launcher from a helpful Derelict 1463 | -9/Mines | Assisted by bots powering up and referring to "LRC-V3" 1557 | -9/Mines | Build established: Scavenger-Skirmisher 2556 | -9/Mines | Discovered new exit (range 16) 2613 | -9/Mines | Discovered new exit (range 7) 2650 | -9/Mines | Entered Materials 2650 | -8/Materials | Accompanied by 3 allies 2650 | -8/Materials | Evolved 4 slots: Utility x3, Weapon x1 3546 | -8/Materials | Build established: Scavenger-Mutant 4206 | -8/Materials | Discovered new exit (range 14) 4315 | -8/Materials | Identified exit to Factory 4407 | -8/Materials | Repaired Seismic Detector 5173 | -8/Materials | Core integrity fell below 50% 5209 | -8/Materials | Lost 5 parts (1n2u2w) 5455 | -8/Materials | Build established: Mutant 6130 | -8/Materials | Entered Factory 6130 | -7/Factory | Evolved 2 slots: Propulsion x2 6821 | -7/Factory | Discovered new exit (range 9) 6832 | -7/Factory | Identified exit to Factory 7214 | -7/Factory | YOLO Cannon suddenly exploded 7215 | -7/Factory | Core integrity fell below 50% 7302 | -7/Factory | Core integrity fell below 20% 7307 | -7/Factory | Lost 10 parts (1p4n2u3w) 7332 | -7/Factory | Destroyed by G-47 Trooper with Particle Gun Last Messages --------------- 07318_ Destroyed Imp. Heat Sink. 07318_ G-47 Trooper system corrupted by crushing effect. 07318_ G-47 Trooper knocked back. 07319_ U-05 Engineer builds a Wall. 07319_ U-05 Engineer lays Concrete. 07322_ Critical hit (Burn: +37). 07322_ U-05 Engineer lays Concrete. 07322_ Critical hit (Burn: +37). 07323_ U-05 Engineer lays Concrete. 07324_ Destroyed Lgt. Nuclear Core. 07324_ G-47 Trooper system corrupted by crushing effect. 07324_ G-47 Trooper knocked back. 07324_ G-47 Trooper IFF system glitched. 07325_ U-05 Engineer lays Concrete. 07328_ Transmission Jammer destroyed. 07329_ U-05 Engineer lays Concrete. 07330_ G-47 Trooper destroyed. 07332_ Critical hit (Burn: +37). Map ----- +----------------------------------------------------+ | ???????????# #????????????????????????? | | ???????????# #????????????????????????? | | ???????????# /< #????????????????????????? | | ????######## #????????????????????????? | | ????# # #????????????????????????? | | ????# + +????????????????????????? | | ????# # #?? ????????????????????? | | ????# # #?? #??????????????????? | | ????# !! #+##+########### ##?????????????????? | | ????# !! # #?????????????????? | | ????# !/ # #?????????????????? | | ????# + #?????????????????? | | ????# # #?????????????????? | | ????# # #?????????????????? | | ????# """ ####+######### #?????????????????? | | ????# """ # ! ## ##????????????????? | | ????# """ # "" ## #????????????????? | | ????# # "" ## ##########???????? | | ????######## "T / ## ??????? | | ???????????# "" ## ????????? | | ???????????# "" ## "" """?????????? | | ???????????# ## " " """?????????? | | ???????????# ## """?????????? | | ???????????# ## u """?????????? | | ?????????#########+###### % r ?????? | | ?????????# # g @ ?????? | | ?????????# # *r ########+## ??????? | | ?????????# # u r ## ?????????? | | ?????????# # #### ## #????????? | | ?????????# #% # ## #????????? | | ?????????# # # % # #????????? | | ?????????# + # # ## ########????????? | | ?????????# # #### # u% ! ??????????????? | | ?????????# #####??# ?????????????? | | ?????????# #??????# # % " """ ????????????? | | ?????????# #??????#### """ """?????????????? | | ?????????# #?????????? """ ""??????????????? | | ?????????## #?????????? ???????????????????? | | ??????????#######?????????? ???????????????????? | | ???????????????????????????###???????????????????? | | ?????????????????????????????????????????????????? | | ?????????????????????????????????????????????????? | | ?????????????????????????????????????????????????? | | ?????????????????????????????????????????????????? | | ?????????????????????????????????????????????????? | | ?????????????????????????????????????????????????? | | ?????????????????????????????????????????????????? | | ?????????????????????????????????????????????????? | | ?????????????????????????????????????????????????? | | ?????????????????????????????????????????????????? | +----------------------------------------------------+ Best States ------------- Heat Dissipation 48 Energy Generation 14 Energy Capacity 275 Matter Stores 300 Matter Capacity 300 Sight Range 16 Terrain Scan Range 16 Terrain Scan Density 85 Jamming Range 12 Armor Coverage 150 Weapon Shielding 33 Evasion (%) 55 Targeting Accuracy 8 Core Analysis 6 Recoil Reduction 4 Salvage Targeting 2 Item Schematics ----------------- EM Pulse Gun | -8/Materials | Scanalyzed Aluminum Leg | -8/Materials | Scanalyzed Robot Schematics ------------------ None Fabricated ------------ Nothing Repaired ---------- Seismic Detector | 25% | -8/Materials Studied --------- EM Pulse Gun | -8/Materials | Hacked Alien Tech Used ----------------- None Achievements -------------- Follow The Leader Sixth Sense That Tickles YOLO Challenges ------------ None Game ------ Seed PlexusRainbowShovel Manual? 0 Play Time 00:58:33 Cumulative 41.4 hours Start 2026.03.04 @ 12:00:24 End 2026.03.04 @ 13:51:07 Sessions 1 Manual Loads 0 Difficulty Rogue Special Mode None Game No. 58 Rogue 58 Adventurer 0 Explorer 0 Win Type - Total 0 Types 0/0/0/0/0/0/0/0/0/0 Lore% 38 Gallery% 29 Achievement% 19 Wizard Run 0 Options --------- Layout 1 ASCII 0 Keyboard 0 Movement Arrows Keybinds 0 Fullscreen 1 Font 16/SmallcapsGlow Map View 55x38 Zoom Use 0% Tactical HUD 1 Map Filters NONE Filters NONE Steam 1 RUN: 6992c414-4e30-46e2-91df-f09965918408